{"text_format":"3","workbook":"xlsx","n_sheets":2,"sheets":["Cameras","Servers"],"read":"whole","date_system":"1900"}

{"sheet":"Cameras","index":0,"n_rows":41,"n_cols":23,"rows_kept":41,"merged":[[1,6,1,10],[1,11,1,16],[1,17,1,22]]}
[]
[{"$nulls":6},"Input",{"$nulls":4},"Output 1",{"$nulls":5},"Output2"]
[null,"Camera ID","Server","Server Type",null,"PTZ","Caption","Category","Action","VideoInput","Temp","Category","Action","Caption","GeviScope alias","PTZ head","speed","Category","Action","Caption","G-Core alias","PTZ head","speed"]
[null,101030,"gscope-cdu-1","G-Core",{"$f":"B4","v":101030},"O",{"$f":"CONCATENATE(\"GeVi \",I4,IF(ISNUMBER(FIND(\"Focus\",I4)),\" 0_\",\"_\"),E4)","v":"GeVi PanLeft_101030"},"Telemetry","PanLeft",{"$f":"E4","v":101030},{"$f":"IF(OR(I4=\"FocusFar\",I4=\"FocusNear\"),0,\"\")","v":""},"GSC: Camera Control","PanLeft",{"$f":"CONCATENATE(\"GSC \",M4,IF(D4=\"G-Core\",IF(ISNUMBER(FIND(\"Focus\",I4)),\" 128\",\"\"),CONCATENATE(IF(ISNUMBER(FIND(\"Focus\",I4)),\" 128_\",\"_\"),B4)))","v":"GSC PanLeft"},{"$f":"IF(D4=\"G-Core\",\"\",C4)","v":""},{"$f":"IF(D4=\"G-Core\",\"\",B4)","v":""},{"$f":"IF(OR(I4=\"FocusFar\",I4=\"FocusNear\"),128,\"\")","v":""},"G-Core: Camera control","PanLeft",{"$f":"CONCATENATE(\"GNG \",S4,IF(D4=\"G-Core\",CONCATENATE(IF(ISNUMBER(FIND(\"Focus\",I4)),\" 128_\",\"_\"),E4),IF(ISNUMBER(FIND(\"Focus\",I4)),\" 128\",\"\")))","v":"GNG PanLeft_101030"},{"$f":"IF(D4=\"G-Core\",C4,\"\")","v":"gscope-cdu-1"},{"$f":"IF(D4=\"G-Core\",B4,\"\")","v":101030},{"$f":"IF(OR(I4=\"FocusFar\",I4=\"FocusNear\"),128,\"\")","v":""}]
[null,101030,"gscope-cdu-1","G-Core",101030,"O","GeVi PanRight_101030","Telemetry","PanRight",101030,{"$f":"IF(OR(I5=\"FocusFar\",I5=\"FocusNear\"),0,\"\")","v":""},"GSC: Camera Control","PanRight",{"$f":"CONCATENATE(\"GSC \",M5,IF(D5=\"G-Core\",IF(ISNUMBER(FIND(\"Focus\",I5)),\" 128\",\"\"),CONCATENATE(IF(ISNUMBER(FIND(\"Focus\",I5)),\" 128_\",\"_\"),B5)))","v":"GSC PanRight"},"","",{"$f":"IF(OR(I5=\"FocusFar\",I5=\"FocusNear\"),128,\"\")","v":""},"G-Core: Camera control","PanRight",{"$f":"CONCATENATE(\"GNG \",S5,IF(D5=\"G-Core\",CONCATENATE(IF(ISNUMBER(FIND(\"Focus\",I5)),\" 128_\",\"_\"),E5),IF(ISNUMBER(FIND(\"Focus\",I5)),\" 128\",\"\")))","v":"GNG PanRight_101030"},"gscope-cdu-1",101030,{"$f":"IF(OR(I5=\"FocusFar\",I5=\"FocusNear\"),128,\"\")","v":""}]
[null,101030,"gscope-cdu-1","G-Core",101030,"O","GeVi PanStop_101030","Telemetry","PanStop",101030,"","GSC: Camera Control","PanStop","GSC PanStop","","","","G-Core: Camera control","PanStop","GNG PanStop_101030","gscope-cdu-1",101030,""]
[null,101030,"gscope-cdu-1","G-Core",101030,"O","GeVi TiltDown_101030","Telemetry","TiltDown",101030,"","GSC: Camera Control","TiltDown","GSC TiltDown","","","","G-Core: Camera control","TiltDown","GNG TiltDown_101030","gscope-cdu-1",101030,""]
[null,101030,"gscope-cdu-1","G-Core",101030,"O","GeVi TiltUp_101030","Telemetry","TiltUp",101030,"","GSC: Camera Control","TiltUp","GSC TiltUp","","","","G-Core: Camera control","TiltUp","GNG TiltUp_101030","gscope-cdu-1",101030,""]
[null,101030,"gscope-cdu-1","G-Core",101030,"O","GeVi TiltStop_101030","Telemetry","TiltStop",101030,"","GSC: Camera Control","TiltStop","GSC TiltStop","","","","G-Core: Camera control","TiltStop","GNG TiltStop_101030","gscope-cdu-1",101030,""]
[null,101030,"gscope-cdu-1","G-Core",101030,"O","GeVi ZoomIn_101030","Telemetry","ZoomIn",101030,"","GSC: Camera Control","ZoomIn","GSC ZoomIn","","","","G-Core: Camera control","ZoomIn","GNG ZoomIn_101030","gscope-cdu-1",101030,""]
[null,101030,"gscope-cdu-1","G-Core",101030,"O","GeVi ZoomOut_101030","Telemetry","ZoomOut",101030,"","GSC: Camera Control","ZoomOut","GSC ZoomOut","","","","G-Core: Camera control","ZoomOut","GNG ZoomOut_101030","gscope-cdu-1",101030,""]
[null,101030,"gscope-cdu-1","G-Core",101030,"O","GeVi ZoomStop_101030","Telemetry","ZoomStop",101030,"","GSC: Camera Control","ZoomStop","GSC ZoomStop","","","","G-Core: Camera control","ZoomStop","GNG ZoomStop_101030","gscope-cdu-1",101030,""]
[null,101030,"gscope-cdu-1","G-Core",101030,"O","GeVi FocusFar 0_101030","Telemetry","FocusFar",101030,0,"GSC: Camera Control","FocusFar","GSC FocusFar 128","","",128,"G-Core: Camera control","FocusFar","GNG FocusFar 128_101030","gscope-cdu-1",101030,128]
[null,101030,"gscope-cdu-1","G-Core",101030,"O","GeVi FocusNear 0_101030","Telemetry","FocusNear",101030,0,"GSC: Camera Control","FocusNear","GSC FocusNear 128","","",128,"G-Core: Camera control","FocusNear","GNG FocusNear 128_101030","gscope-cdu-1",101030,128]
[null,101030,"gscope-cdu-1","G-Core",101030,"O","GeVi FocusStop 0_101030","Telemetry","FocusStop",101030,"","GSC: Camera Control","FocusStop","GSC FocusStop 128","","","","G-Core: Camera control","FocusStop","GNG FocusStop 128_101030","gscope-cdu-1",101030,""]
[null,101030,"gscope-cdu-1","G-Core",101030,"O","GeVi DefaultPosCallUp_101030","Telemetry","DefaultPosCallUp",101030,"","GSC: Camera Control","MoveToDefaultPosition","GSC MoveToDefaultPosition","","","","G-Core: Camera control","MoveToDefaultPosition","GNG MoveToDefaultPosition_101030","gscope-cdu-1",101030,""]
[null,101030,"gscope-cdu-1","G-Core",101030,"O","GeVi DefaultPosClear_101030","Telemetry","DefaultPosClear",101030,"","GSC: Camera Control","ClearDefaultPosition","GSC ClearDefaultPosition","","","","G-Core: Camera control","ClearDefaultPosition","GNG ClearDefaultPosition_101030","gscope-cdu-1",101030,""]
[null,101030,"gscope-cdu-1","G-Core",101030,"O","GeVi DefaultPosSave_101030","Telemetry","DefaultPosSave",101030,"","GSC: Camera Control","SaveDefaultPosition","GSC SaveDefaultPosition","","","","G-Core: Camera control","SaveDefaultPosition","GNG SaveDefaultPosition_101030","gscope-cdu-1",101030,""]
[null,101030,"gscope-cdu-1","G-Core",101030,"O","GeVi IrisClose_101030","Telemetry","IrisClose",101030,"","GSC: Camera Control","IrisClose","GSC IrisClose","","","","G-Core: Camera control","IrisClose","GNG IrisClose_101030","gscope-cdu-1",101030,""]
[null,101030,"gscope-cdu-1","G-Core",101030,"O","GeVi IrisOpen_101030","Telemetry","IrisOpen",101030,"","GSC: Camera Control","IrisOpen","GSC IrisOpen","","","","G-Core: Camera control","IrisOpen","GNG IrisOpen_101030","gscope-cdu-1",101030,""]
[null,101030,"gscope-cdu-1","G-Core",101030,"O","GeVi IrisStop_101030","Telemetry","IrisStop",101030,"","GSC: Camera Control","IrisStop","GSC IrisStop","","","","G-Core: Camera control","IrisStop","GNG IrisStop_101030","gscope-cdu-1",101030,""]
[null,106005,"GSC - Praha 6 - 1","GeViScope",{"$f":"B22","v":106005},"O",{"$f":"CONCATENATE(\"GeVi \",I22,IF(ISNUMBER(FIND(\"Focus\",I22)),\" 0_\",\"_\"),E22)","v":"GeVi PanLeft_106005"},"Telemetry","PanLeft",{"$f":"E22","v":106005},"","GSC: Camera Control","PanLeft","GSC PanLeft_106005",{"$f":"IF(D22=\"G-Core\",\"\",C22)","v":"GSC - Praha 6 - 1"},{"$f":"IF(D22=\"G-Core\",\"\",B22)","v":106005},"","G-Core: Camera control","PanLeft","GNG PanLeft",{"$f":"IF(D22=\"G-Core\",C22,\"\")","v":""},{"$f":"IF(D22=\"G-Core\",B22,\"\")","v":""},""]
[null,106005,"GSC - Praha 6 - 1","GeViScope",106005,"O","GeVi PanRight_106005","Telemetry","PanRight",106005,"","GSC: Camera Control","PanRight","GSC PanRight_106005","GSC - Praha 6 - 1",106005,"","G-Core: Camera control","PanRight","GNG PanRight","","",""]
[null,106005,"GSC - Praha 6 - 1","GeViScope",106005,"O","GeVi PanStop_106005","Telemetry","PanStop",106005,"","GSC: Camera Control","PanStop","GSC PanStop_106005","GSC - Praha 6 - 1",106005,"","G-Core: Camera control","PanStop","GNG PanStop","","",""]
[null,106005,"GSC - Praha 6 - 1","GeViScope",106005,"O","GeVi TiltDown_106005","Telemetry","TiltDown",106005,"","GSC: Camera Control","TiltDown","GSC TiltDown_106005","GSC - Praha 6 - 1",106005,"","G-Core: Camera control","TiltDown","GNG TiltDown","","",""]
[null,106005,"GSC - Praha 6 - 1","GeViScope",106005,"O","GeVi TiltUp_106005","Telemetry","TiltUp",106005,"","GSC: Camera Control","TiltUp","GSC TiltUp_106005","GSC - Praha 6 - 1",106005,"","G-Core: Camera control","TiltUp","GNG TiltUp","","",""]
[null,106005,"GSC - Praha 6 - 1","GeViScope",106005,"O","GeVi TiltStop_106005","Telemetry","TiltStop",106005,"","GSC: Camera Control","TiltStop","GSC TiltStop_106005","GSC - Praha 6 - 1",106005,"","G-Core: Camera control","TiltStop","GNG TiltStop","","",""]
[null,106005,"GSC - Praha 6 - 1","GeViScope",106005,"O","GeVi ZoomIn_106005","Telemetry","ZoomIn",106005,"","GSC: Camera Control","ZoomIn","GSC ZoomIn_106005","GSC - Praha 6 - 1",106005,"","G-Core: Camera control","ZoomIn","GNG ZoomIn","","",""]
[null,106005,"GSC - Praha 6 - 1","GeViScope",106005,"O","GeVi ZoomOut_106005","Telemetry","ZoomOut",106005,"","GSC: Camera Control","ZoomOut","GSC ZoomOut_106005","GSC - Praha 6 - 1",106005,"","G-Core: Camera control","ZoomOut","GNG ZoomOut","","",""]
[null,106005,"GSC - Praha 6 - 1","GeViScope",106005,"O","GeVi ZoomStop_106005","Telemetry","ZoomStop",106005,"","GSC: Camera Control","ZoomStop","GSC ZoomStop_106005","GSC - Praha 6 - 1",106005,"","G-Core: Camera control","ZoomStop","GNG ZoomStop","","",""]
[null,106005,"GSC - Praha 6 - 1","GeViScope",106005,"O","GeVi FocusFar 0_106005","Telemetry","FocusFar",106005,0,"GSC: Camera Control","FocusFar","GSC FocusFar 128_106005","GSC - Praha 6 - 1",106005,128,"G-Core: Camera control","FocusFar","GNG FocusFar 128","","",128]
[null,106005,"GSC - Praha 6 - 1","GeViScope",106005,"O","GeVi FocusNear 0_106005","Telemetry","FocusNear",106005,0,"GSC: Camera Control","FocusNear","GSC FocusNear 128_106005","GSC - Praha 6 - 1",106005,128,"G-Core: Camera control","FocusNear","GNG FocusNear 128","","",128]
[null,106005,"GSC - Praha 6 - 1","GeViScope",106005,"O","GeVi FocusStop 0_106005","Telemetry","FocusStop",106005,"","GSC: Camera Control","FocusStop","GSC FocusStop 128_106005","GSC - Praha 6 - 1",106005,"","G-Core: Camera control","FocusStop","GNG FocusStop 128","","",""]
[null,106005,"GSC - Praha 6 - 1","GeViScope",106005,"O","GeVi DefaultPosCallUp_106005","Telemetry","DefaultPosCallUp",106005,"","GSC: Camera Control","MoveToDefaultPosition","GSC MoveToDefaultPosition_106005","GSC - Praha 6 - 1",106005,"","G-Core: Camera control","MoveToDefaultPosition","GNG MoveToDefaultPosition","","",""]
[null,106005,"GSC - Praha 6 - 1","GeViScope",106005,"O","GeVi DefaultPosClear_106005","Telemetry","DefaultPosClear",106005,"","GSC: Camera Control","ClearDefaultPosition","GSC ClearDefaultPosition_106005","GSC - Praha 6 - 1",106005,"","G-Core: Camera control","ClearDefaultPosition","GNG ClearDefaultPosition","","",""]
[null,106005,"GSC - Praha 6 - 1","GeViScope",106005,"O","GeVi DefaultPosSave_106005","Telemetry","DefaultPosSave",106005,"","GSC: Camera Control","SaveDefaultPosition","GSC SaveDefaultPosition_106005","GSC - Praha 6 - 1",106005,"","G-Core: Camera control","SaveDefaultPosition","GNG SaveDefaultPosition","","",""]
[null,106005,"GSC - Praha 6 - 1","GeViScope",106005,"O","GeVi IrisClose_106005","Telemetry","IrisClose",106005,"","GSC: Camera Control","IrisClose","GSC IrisClose_106005","GSC - Praha 6 - 1",106005,"","G-Core: Camera control","IrisClose","GNG IrisClose","","",""]
[null,106005,"GSC - Praha 6 - 1","GeViScope",106005,"O","GeVi IrisOpen_106005","Telemetry","IrisOpen",106005,"","GSC: Camera Control","IrisOpen","GSC IrisOpen_106005","GSC - Praha 6 - 1",106005,"","G-Core: Camera control","IrisOpen","GNG IrisOpen","","",""]
[null,106005,"GSC - Praha 6 - 1","GeViScope",106005,"O","GeVi IrisStop_106005","Telemetry","IrisStop",106005,"","GSC: Camera Control","IrisStop","GSC IrisStop_106005","GSC - Praha 6 - 1",106005,"","G-Core: Camera control","IrisStop","GNG IrisStop","","",""]
[null,101001,"GSC - PI - Karluv most",{"$f":"VLOOKUP(C40,Servers!B:C,2,FALSE)","v":"GeViScope"},{"$f":"B40","v":101001},"P",{"$f":"CONCATENATE(\"GeVi \",I40,IF(ISNUMBER(FIND(\"Cross\",I40)),\" C_\",\"_\"),E40, \" -> M\")","v":"GeVi CrossSwitch C_101001 -> M"},"Crossbar control","CrossSwitch",{"$f":"E40","v":101001},"","GSC: Viewer actions","ViewerConnectLive",{"$f":"CONCATENATE(\"GSC ViewerConnectLive V <- C\",IF(D40=\"G-Core\",\"\",CONCATENATE(\"_\",E40)))","v":"GSC ViewerConnectLive V <- C_101001"},{"$f":"IF(D40=\"G-Core\",\"\",C40)","v":"GSC - PI - Karluv most"},{"$f":"E40","v":101001},{"$f":"IF(OR(I40=\"FocusFar\",I40=\"FocusNear\"),128,\"\")","v":""},"G-Core: Viewer actions","ViewerConnectLive",{"$f":"CONCATENATE(\"GNG ViewerConnectLive V <- C\",IF(D40=\"G-Core\",CONCATENATE(\"_\",J40),\"\"))","v":"GNG ViewerConnectLive V <- C"},{"$f":"IF(D40=\"G-Core\",C40,\"\")","v":""},null,{"$f":"IF(OR(I40=\"FocusFar\",I40=\"FocusNear\"),128,\"\")","v":""}]
[null,101004,"gscope-cdu-1",{"$f":"VLOOKUP(C41,Servers!B:C,2,FALSE)","v":"G-Core"},101004,"P",{"$f":"CONCATENATE(\"GeVi \",I41,IF(ISNUMBER(FIND(\"Cross\",I41)),\" C_\",\"_\"),E41, \" -> M\")","v":"GeVi CrossSwitch C_101004 -> M"},"Crossbar control","CrossSwitch",{"$f":"E41","v":101004},null,"GSC: Viewer actions","ViewerConnectLive",{"$f":"CONCATENATE(\"GSC ViewerConnectLive V <- C\",IF(D41=\"G-Core\",\"\",CONCATENATE(\"_\",E41)))","v":"GSC ViewerConnectLive V <- C"},"",{"$f":"E41","v":101004},null,"G-Core: Viewer actions","ViewerConnectLive",{"$f":"CONCATENATE(\"GNG ViewerConnectLive V <- C\",IF(D41=\"G-Core\",CONCATENATE(\"_\",J41),\"\"))","v":"GNG ViewerConnectLive V <- C_101004"},"gscope-cdu-1"]

{"sheet":"Servers","index":1,"n_rows":20515,"n_cols":6,"rows_kept":20515}
[]
[null,"Hostname","Typ","IP server","Username","Password"]
[null,"TSK_JS_I","GeViScope","10.240.30.31","sysadmin","masterkey"]
[null,"TSK_JS_III","GeViScope","10.240.30.33","sysadmin","masterkey"]
[null,"TSK_JS_IV","GeViScope","10.240.30.34","sysadmin","masterkey"]
[null,"TSK_JS_V","GeViScope","10.240.30.35","sysadmin","masterkey"]
[null,"TSK_JS_VI","GeViScope","10.240.30.36","sysadmin","masterkey"]
[null,"GCE-BL-TGC1A1","G-Core","10.240.37.61","sysadmin","masterkey"]
[null,"GCE-BL-TGC1A2","G-Core","10.240.37.62","sysadmin","masterkey"]
[null,"GCE-BL-TGC1B3","G-Core","10.240.37.63","sysadmin","masterkey"]
[null,"GCE-BL-TGC1B4","G-Core","10.240.37.64","sysadmin","masterkey"]
[null,"GCE-BL-TGC3A5","G-Core","10.240.37.65","sysadmin","masterkey"]
[null,"GCE-BL-TGC3A6","G-Core","10.240.37.66","sysadmin","masterkey"]
[null,"GCE-BL-TGC3A7","G-Core","10.240.37.67","sysadmin","masterkey"]
[null,"GCE-BL-TGC3A8","G-Core","10.240.37.68","sysadmin","masterkey"]
[null,"GCE-BL-TGC3B9","G-Core","10.240.37.69","sysadmin","masterkey"]
[null,"GCE-BL-TGC3B10","G-Core","10.240.37.70","sysadmin","masterkey"]
[null,"GCE-BL-TGC3B11","G-Core","10.240.37.71","sysadmin","masterkey"]
[null,"GCE-BL-TGC3B12","G-Core","10.240.37.72","sysadmin","masterkey"]
[null,"GCE-BL-TGC1FR","G-Core","10.240.37.73","sysadmin","masterkey"]
[null,"GCE-BL-TGC3AFR","G-Core","10.240.37.74","sysadmin","masterkey"]
[null,"GCE-BL-TGC3BFR","G-Core","10.240.37.75","sysadmin","masterkey"]
[null,"GSCOPE-DC5-1","G-Core","10.240.140.21","sysadmin","masterkey"]
[null,"GSCOPE-DC5-2","G-Core","10.240.140.22","sysadmin","masterkey"]
[null,"GSCOPE-DC5-3","G-Core","10.240.140.23","sysadmin","masterkey"]
[null,"GSCOPE-DC5-4","G-Core","10.240.140.24","sysadmin","masterkey"]
[null,"GSCOPE-DC5-5","G-Core","10.240.140.25","sysadmin","masterkey"]
[null,"GSCOPE-DC5-6","G-Core","10.240.140.26","sysadmin","masterkey"]
[null,"GSCOPE-DC5-7","G-Core","10.240.140.27","sysadmin","masterkey"]
[null,"GSCOPE-DC5-8","G-Core","10.240.140.28","sysadmin","masterkey"]
[null,"G-SCOPE-PI-FLORENC","G-Core","10.240.1.33","sysadmin","masterkey"]
[null,"GSCOPE-P6-9","G-Core","10.240.6.39","sysadmin","masterkey"]
[null,"GSCOPE-PII-8","G-Core","10.240.2.38","sysadmin","masterkey"]
[null,"GSCOPE-PI-6-M","G-Core","10.240.1.43","sysadmin","masterkey"]
[null,"GSCOPE-PIII-13","G-Core","10.240.3.43","sysadmin","masterkey"]
[null,"GSCOPE-PIV-11","G-Core","10.240.4.41","sysadmin","masterkey"]
[null,"GSC-HN-1","GeViScope","10.240.1.31","sysadmin","masterkey"]
[null,"GSC-HN-2","GeViScope","10.240.1.32","sysadmin","masterkey"]
[null,"GSC - Praha 6 - 1","GeViScope","10.240.6.31","sysadmin","masterkey"]
[null,"GSC - Praha 6 - 2","GeViScope","10.240.6.32","sysadmin","masterkey"]
[null,"GSC - Praha 6 - 3","GeViScope","10.240.6.33","sysadmin","masterkey"]
[null,"GSC - Praha 6 - 8","GeViScope","10.240.6.38","sysadmin","masterkey"]
[null,"GSC-PI-SE","GeViScope","10.240.1.41","sysadmin","masterkey"]
[null,"GSC - PI - Karluv most","GeViScope","10.240.1.36","sysadmin","masterkey"]
[null,"GSC - Praha II - 1","GeViScope","10.240.2.31","sysadmin","masterkey"]
[null,"GSC - Praha II - 4","GeViScope","10.240.2.34","sysadmin","masterkey"]
[null,"GSC - Praha II - 7","GeViScope","10.240.2.37","sysadmin","masterkey"]
[null,"GSC - Praha III - 1","GeViScope","10.240.3.31","sysadmin","masterkey"]
[null,"GSC - Praha III - 10","GeViScope","10.240.3.40","sysadmin","masterkey"]
[null,"GSC - Praha III - 11","GeViScope","10.240.3.41","sysadmin","masterkey"]
[null,"GSC - Praha III - 3","GeViScope","10.240.3.33","sysadmin","masterkey"]
[null,"GSC - Praha III - 5","GeViScope","10.240.3.35","sysadmin","masterkey"]
[null,"GSC - Praha III - 8","GeViScope","10.240.3.38","sysadmin","masterkey"]
[null,"GSC - Praha IV - 1","GeViScope","10.240.4.31","sysadmin","masterkey"]
[null,"GSC - Praha IV - 2","GeViScope","10.240.4.32","sysadmin","masterkey"]
[null,"GSC - Praha IV - 5","GeViScope","10.240.4.35","sysadmin","masterkey"]
[null,"GSC - Praha IV - 9","GeViScope","10.240.4.39","sysadmin","masterkey"]
[null,"GSC - UMR - 1 ","GeViScope","10.240.34.31","sysadmin","masterkey"]
[null,"GSC - UMR - 2","GeViScope","10.240.34.32","sysadmin","masterkey"]
[null,"gscope-cdu-1","G-Core","10.240.130.79","sysadmin","masterkey"]
[null,"gscope-cdu-2","G-Core","10.240.130.80","sysadmin","masterkey"]
[null,"gscope-cdu-3","G-Core","10.240.130.81","sysadmin","masterkey"]
[null,"GST - CDU - 11","GeViScope","10.240.130.61","sysadmin","masterkey"]
[null,"GST - CDU - 12","GeViScope","10.240.130.62","sysadmin","masterkey"]
[null,"GST - CDU - 13","GeViScope","10.240.130.63","sysadmin","masterkey"]
[null,"GST - CDU - 14","GeViScope","10.240.130.64","sysadmin","masterkey"]
[null,"GST - CDU - 7","GeViScope","10.240.130.57","sysadmin","masterkey"]
[null,"GST - CDU - 8","GeViScope","10.240.130.58","sysadmin","masterkey"]
[null,"TSK_OPD1_1","GeViScope","10.240.41.21","sysadmin","masterkey"]
[null,"TSK_OPD1_2","GeViScope","10.240.41.22","sysadmin","masterkey"]
[null,"TSK_OPD1_3","GeViScope","10.240.41.23","sysadmin","masterkey"]
[null,"TSK_OPD1_4","GeViScope","10.240.41.24","sysadmin","masterkey"]
[null,"TSK_OPD4_1","GeViScope","10.240.30.37","sysadmin","masterkey"]
[null,"TSK_OPD4_2","GeViScope","10.240.30.38","sysadmin","masterkey"]
[null,"TSK_OPD4_3","GeViScope","10.240.30.39","sysadmin","masterkey"]
[null,"TSK_GST_11","G-Core","10.240.30.40","sysadmin","masterkey"]
[null,"GST-ATM","G-Core","10.240.38.41","sysadmin","masterkey"]
[null,"GST-HDRU-1","G-Core","10.240.46.41","sysadmin","masterkey"]
[null,"GST-HDRU-2","G-Core","10.240.46.42","sysadmin","masterkey"]
[null,"GST-LAT","G-Core","10.240.54.61","sysadmin","masterkey"]
[null,"GST-ODRU","G-Core","10.240.38.61","sysadmin","masterkey"]
[null,"GST-SAT-1","G-Core","10.240.39.41","sysadmin","masterkey"]
[null,"GST-SAT-2","G-Core","10.240.39.42","sysadmin","masterkey"]
[null,"GST-TAT","G-Core","10.240.53.21","sysadmin","masterkey"]
[null,"GST-ZAT","G-Core","10.240.38.81","sysadmin","masterkey"]
{"$rows_empty":20348}
[null,"CAMEA-3","GeViScope",{"$f":"VLOOKUP(C20434,Servers!B:C,2,FALSE)","v":{"$error":"#N/A"}}]
[null,"CAMEA-4","GeViScope"]
[null,"CAMEA-5","GeViScope"]
[null,"CAMEA-6","GeViScope"]
[null,"GCE-BL-TGC1A1","G-Core"]
[null,"GCE-BL-TGC1A2","G-Core"]
[null,"GCE-BL-TGC1B3","G-Core"]
[null,"GCE-BL-TGC1B4","G-Core"]
[null,"GCE-BL-TGC3A5","G-Core"]
[null,"GCE-BL-TGC3A6","G-Core"]
[null,"GCE-BL-TGC3A7","G-Core"]
[null,"GCE-BL-TGC3A8","G-Core"]
[null,"GCE-BL-TGC3B9","G-Core"]
[null,"GCE-BL-TGC3B10","G-Core"]
[null,"GCE-BL-TGC3B11","G-Core"]
[null,"GCE-BL-TGC3B12","G-Core"]
[null,"GCE-BL-TGC1FR","G-Core"]
[null,"GCE-BL-TGC3AFR","G-Core"]
[null,"GCE-BL-TGC3BFR","G-Core"]
[null,"G-Core - DC5 - 1","G-Core"]
[null,"G-Core - DC5 - 2","G-Core"]
[null,"G-Core - DC5 - 3 ","G-Core"]
[null,"G-Core - DC5 - 4 ","G-Core"]
[null,"G-Core - DC5 - 5","G-Core"]
[null,"G-Core - DC5 - 6","G-Core"]
[null,"G-Core - DC5 - 7","G-Core"]
[null,"G-Core - DC5 - 8","G-Core"]
[null,"G-Core - Florenc","G-Core"]
[null,"G-Core - P6 - 9","G-Core"]
[null,"G-Core - PII - 8","G-Core"]
[null,"G-Core - Praha I - 6","G-Core"]
[null,"G-Core - Praha III - 13","G-Core"]
[null,"G-Core - Praha IV - 11","G-Core"]
[null,"Geviscope - Hlavní nádraží 1","GeViScope"]
[null,"Geviscope - Hlavní nádraží 2","GeViScope"]
[null,"GSC - Praha 6 - 1","GeViScope"]
[null,"GSC - Praha 6 - 2","GeViScope"]
[null,"GSC - Praha 6 - 3","GeViScope"]
[null,"GSC - Praha 6 - 8","GeViScope"]
[null,"GSC - Praha I - 11","GeViScope"]
[null,"GSC - Praha I - 6","GeViScope"]
[null,"GSC - Praha II - 1","GeViScope"]
[null,"GSC - Praha II - 4","GeViScope"]
[null,"GSC - Praha II - 7","GeViScope"]
[null,"GSC - Praha III - 1","GeViScope"]
[null,"GSC - Praha III - 10","GeViScope"]
[null,"GSC - Praha III - 11","GeViScope"]
[null,"GSC - Praha III - 3","GeViScope"]
[null,"GSC - Praha III - 5","GeViScope"]
[null,"GSC - Praha III - 8","GeViScope"]
[null,"GSC - Praha IV - 1","GeViScope"]
[null,"GSC - Praha IV - 2","GeViScope"]
[null,"GSC - Praha IV - 5","GeViScope"]
[null,"GSC - Praha IV - 9","GeViScope"]
[null,"GSC - UMR - 1 ","GeViScope"]
[null,"GSC - UMR - 2","GeViScope"]
[null,"gscope-cdu-1","G-Core"]
[null,"gscope-cdu-2","G-Core"]
[null,"gscope-cdu-3","G-Core"]
[null,"GST - CDU - 11","GeViScope"]
[null,"GST - CDU - 12","GeViScope"]
[null,"GST - CDU - 13","GeViScope"]
[null,"GST - CDU - 14","GeViScope"]
[null,"GST - CDU - 7","GeViScope"]
[null,"GST - CDU - 8","GeViScope"]
[null,"OPD1-1","GeViScope"]
[null,"OPD1-2","GeViScope"]
[null,"OPD1-3","GeViScope"]
[null,"OPD1-4","GeViScope"]
[null,"OPD4-1","GeViScope"]
[null,"OPD4-2","GeViScope"]
[null,"OPD4-3","GeViScope"]
[null,"CAMEA-11","G-Core"]
[null,"TSK-ATM","G-Core"]
[null,"TSK-HDRU-1","G-Core"]
[null,"TSK-HDRU-2","G-Core"]
[null,"TSK-LAT","G-Core"]
[null,"TSK-ODRU","G-Core"]
[null,"TSK-SAT-1","G-Core"]
[null,"TSK-SAT-2","G-Core"]
[null,"TSK-TAT","G-Core"]
[null,"TSK-ZAT","G-Core"]